bitfinex-derivatives/quotes_BNBF0:USTF0_20250329
["timestamp","ask_amount","ask_price","bid_price","bid_amount"]
[1743215887011,1.90121622,617.98,617.26,1.205]
[1743215887305,1.90121622,617.97,617.26,1.205]
[1743215887510,2.84089462,617.96,617.26,1.205]
[1743215887707,1.90121622,617.95,617.26,1.205]
[1743215887905,1.90121622,617.94,617.26,1.205]
[1743215888106,1.90121622,617.93,617.26,1.205]
[1743215888307,2.84089462,617.92,617.26,1.205]
[1743215888510,1.90121622,617.91,617.26,1.205]
[1743215888707,1.90121622,617.9,617.26,1.205]
[1743215888913,1.90121622,617.89,617.26,1.205]
[1743215889213,1.90121622,617.88,617.26,1.205]
[1743215889515,1.90121622,617.87,617.26,1.205]
[1743215889813,1.90121622,617.86,617.26,1.205]
[1743215890011,1.90121622,617.85,617.26,1.205]
[1743215890208,2.84089462,617.84,617.26,1.205]
[1743215890511,1.90121622,617.83,617.26,1.205]
[1743215890712,2.84229242,617.82,617.26,1.205]
[1743215890907,1.90159344,617.81,617.26,1.205]
[1743215891110,1.90159344,617.8,617.26,1.205]
[1743215891309,1.90159344,617.79,617.26,1.205]
[1743215891509,1.90159344,617.78,617.26,1.205]
[1743215891707,1.90159344,617.77,617.26,1.205]
[1743215891908,1.90159344,617.76,617.26,1.205]
[1743215892110,1.90159344,617.75,617.26,1.205]
[1743215892414,1.90159344,617.74,617.26,1.205]
[1743215892619,1.90159344,617.73,617.26,1.205]
[1743215892818,1.90159344,617.72,617.26,1.205]
[1743215893020,1.90159344,617.71,617.26,1.205]
[1743215893220,1.90159344,617.7,617.26,1.205]
[1743215893420,1.90159344,617.69,617.26,1.205]
[1743215893617,1.90159344,617.68,617.26,1.205]
[1743215893819,1.90159344,617.67,617.26,1.205]
[1743215894022,1.21419506,617.66,617.26,1.205]
[1743215894222,2.15489404,617.65,617.26,1.205]
[1743215894420,1.21419506,617.64,617.26,1.205]
[1743215894723,1.21419506,617.63,617.26,1.205]
[1743215894924,1.21419506,617.62,617.26,1.205]
[1743215895123,1.21419506,617.61,617.26,1.205]
[1743215895423,2.15870574,617.6,617.26,1.205]
[1743215895624,1.21800676,617.59,617.26,1.205]
[1743215895824,1.21800676,617.58,617.26,1.205]
[1743215896026,0.94069898,617.58,617.26,1.205]
[1743215896323,1.21875008,617.57,617.26,1.205]
[1743215896520,1.21875008,617.56,617.26,1.205]
[1743215896717,0.94069898,617.55,617.25,1.463]
[1743215897318,0.94069898,617.54,617.25,1.463]
[1743215897726,0.94069898,617.53,617.25,1.463]
[1743215898320,0.94069898,617.52,617.25,1.463]
[1743215898929,0.94069898,617.51,617.25,1.463]
[1743215899429,0.94069898,617.5,617.25,1.463]
[1743215900029,0.94069898,617.49,617.25,1.463]
[1743215901022,0.3234048,618.42,617.25,1.463]
[1743215901226,2.20788357,618.41,617.25,1.463]
[1743215901528,2.53129883,618.4,617.25,1.463]
[1743215901728,2.20788357,618.39,617.25,1.463]
[1743215901925,2.20788357,618.38,617.25,1.463]
[1743215902228,3.15259701,618.37,617.25,1.463]
[1743215902432,2.20788357,618.36,617.25,1.463]
[1743215902730,2.20788357,618.35,617.25,1.463]
[1743215902926,2.20788357,618.34,617.25,1.463]
[1743215903126,2.20788357,618.33,617.25,1.463]
[1743215903430,3.15259701,618.32,617.25,1.463]
[1743215903632,1.91032765,618.31,617.25,1.463]
[1743215903832,2.20790109,618.3,617.25,1.463]
[1743215904027,2.20790109,618.29,617.25,1.463]
[1743215904226,2.20790109,618.28,617.25,1.463]
[1743215904424,2.20790109,618.27,617.25,1.463]
[1743215904630,1.91032765,618.26,617.25,1.463]
[1743215904832,1.91032765,618.25,617.25,1.463]
[1743215905031,2.85504109,618.24,617.25,1.463]
[1743215905228,1.91032765,618.23,617.25,1.463]
[1743215905429,1.91032765,618.22,617.25,1.463]
[1743215905732,2.85504109,618.21,617.25,1.463]
[1743215905931,1.91032765,618.2,617.25,1.463]
[1743215906127,1.91032765,618.19,617.25,1.463]
[1743215906326,1.91032765,618.18,617.25,1.463]
[1743215906633,1.91032765,618.17,617.25,1.463]
[1743215906826,1.91032765,618.16,617.25,1.463]
[1743215907030,1.91032765,618.15,617.25,1.463]
[1743215907328,2.85504109,618.14,617.25,1.463]
[1743215907526,1.91032765,618.13,617.25,1.463]
[1743215907729,1.91032765,618.12,617.26,0.898]
[1743215908033,2.85504109,618.11,617.26,0.898]
[1743215908226,1.91032765,618.1,617.26,0.898]
[1743215908427,1.91032765,618.09,617.26,0.898]
[1743215908628,2.85504109,618.08,617.26,0.898]
[1743215908828,1.91032765,618.07,617.26,0.898]
[1743215909028,1.91032765,618.06,617.26,0.898]
[1743215909229,1.91032765,618.05,617.26,0.898]
[1743215909433,1.91032765,618.04,617.26,0.898]
[1743215909636,2.85504109,618.03,617.26,0.898]
[1743215909835,1.91032765,618.02,617.26,0.898]
[1743215910031,1.91032765,618.01,617.26,0.898]
[1743215910230,1.91032765,618.0,617.26,0.898]
[1743215910437,1.91032765,617.99,617.26,0.898]
[1743215910633,1.91032765,617.98,617.26,0.898]
[1743215910832,1.91032765,617.97,617.26,0.898]
[1743215911039,1.91032765,617.96,617.26,0.898]
[1743215911239,1.91032765,617.95,617.26,0.898]
[1743215911539,1.91032765,617.94,617.26,0.898]
[1743215911737,1.91032765,617.93,617.26,0.898]
[1743215911934,1.91032765,617.92,617.26,0.898]
[1743215912133,1.91032765,617.91,617.26,0.898]
[1743215912440,2.85504109,617.9,617.26,0.898]
[1743215912639,1.91032765,617.89,617.26,0.898]
[1743215912933,2.85504109,617.88,617.26,0.898]
[1743215913139,1.91032765,617.87,617.26,0.898]
[1743215913340,1.91032765,617.86,617.27,1.46]
[1743215913541,1.91032765,617.85,617.27,1.46]
[1743215913741,1.91032765,617.84,617.27,1.46]
[1743215914043,2.85504109,617.83,617.27,1.46]
[1743215914242,2.85504109,617.82,617.27,1.46]
[1743215914436,1.91032765,617.81,617.27,1.46]
[1743215914635,1.91032765,617.8,617.27,1.46]
[1743215914837,1.91032765,617.79,617.27,1.46]
[1743215915034,1.91032765,617.78,617.27,1.46]
[1743215915234,1.91032765,617.77,617.27,1.46]
[1743215915539,1.91032765,617.76,617.27,1.46]
[1743215915841,1.91032765,617.75,617.27,1.46]
[1743215916036,1.91032765,617.74,617.27,1.46]
[1743215916240,1.91032765,617.73,617.27,1.46]
[1743215916442,1.91032765,617.72,617.27,1.46]
[1743215916742,1.91032765,617.71,617.27,1.46]
[1743215916940,1.91032765,617.7,617.27,1.46]
[1743215917238,1.91032765,617.69,617.27,1.46]
[1743215917442,1.91032765,617.68,617.27,1.46]
[1743215917644,1.91032765,617.67,617.27,1.46]
[1743215917843,2.85504109,617.66,617.27,1.46]
[1743215918042,1.90965333,617.65,617.27,1.46]
[1743215918242,1.90965333,617.64,617.27,1.46]
[1743215918442,1.90965333,617.63,617.27,1.46]
[1743215918642,1.90965333,617.62,617.27,1.46]
[1743215918838,1.90965333,617.61,617.27,1.46]
[1743215919036,1.90965333,617.6,617.27,1.46]
[1743215919238,1.90965333,617.59,617.27,1.46]
[1743215919441,2.85436677,617.58,617.27,1.46]
[1743215919643,1.90965333,617.57,617.27,1.46]
[1743215919843,1.90965333,617.56,617.27,1.46]
[1743215920044,1.90965333,617.55,617.27,1.46]
[1743215920243,1.90965333,617.54,617.27,1.46]
[1743215920442,1.90965333,617.53,617.27,1.46]
[1743215920644,1.90965333,617.52,617.27,1.46]
[1743215920941,1.90965333,617.51,617.27,1.46]
[1743215921142,2.85436677,617.5,617.27,1.46]
[1743215921445,2.85436677,617.49,617.27,1.46]
[1743215921646,1.90965333,617.48,617.27,1.46]
[1743215921847,1.90965333,617.47,617.27,1.46]
[1743215922050,1.90965333,617.46,617.27,1.46]
[1743215922345,1.90965333,617.45,617.27,1.46]
[1743215922546,1.90965333,617.44,617.27,1.46]
[1743215922746,1.90965333,617.43,617.27,1.46]
[1743215922942,1.90965333,617.42,617.27,1.46]
[1743215923140,1.90965333,617.41,617.27,1.46]
[1743215923342,1.90965333,617.4,617.27,1.46]
[1743215923542,1.90965333,617.39,617.27,1.46]
[1743215923744,1.90965333,617.38,617.27,1.46]
[1743215923943,1.90965333,617.37,617.27,1.46]
[1743215924141,1.90965333,617.36,617.27,1.46]
[1743215924345,1.22001171,617.35,617.27,1.46]
[1743215924541,1.90809446,617.34,617.27,1.46]
[1743215924746,2.8528079,617.33,617.27,1.46]
[1743215924948,1.90809446,617.32,617.27,1.46]
[1743215925150,1.90809446,617.31,617.27,1.46]
[1743215925348,1.90809446,617.3,617.27,1.46]
[1743215925548,1.90809446,617.29,617.27,1.46]
[1743215925743,1.90809446,617.28,617.27,1.46]
[1743215925943,2.8528079,617.28,617.27,1.46]
[1743215931157,2.16472515,617.28,617.27,1.46]
[1743215931554,0.94471344,617.28,617.27,1.46]
[1743215931754,2.1574336,617.28,617.27,1.46]
[1743215931952,2.84374081,617.28,617.27,1.46]
[1743215939961,2.8424616,617.28,617.27,1.46]
[1743215942563,2.8424616,617.28,616.85,2.095]
[1743215942761,1.89774816,617.27,616.85,2.095]
[1743215942963,1.89774816,617.26,616.85,2.095]
[1743215943160,1.89774816,617.25,616.85,2.095]
[1743215943359,1.89774816,617.24,616.85,2.095]
[1743215943563,1.89774816,617.23,616.85,2.095]
[1743215943763,1.89774816,617.22,616.85,2.095]
[1743215943961,0.94471344,617.23,616.85,2.095]
[1743215943962,1.89679651,617.21,616.85,2.095]
[1743215944159,1.89679651,617.2,616.85,2.095]
[1743215944468,1.89679651,617.19,616.85,2.095]
[1743215944665,1.89679651,617.18,616.85,2.095]
[1743215944861,1.89679651,617.17,616.85,2.095]
[1743215945063,1.89679651,617.16,616.85,2.095]
[1743215945363,1.89679651,617.15,616.85,2.095]
[1743215945567,2.84150995,617.14,616.85,2.095]
[1743215945760,1.89463172,617.13,616.85,2.095]
[1743215945963,1.20987286,617.12,616.85,2.095]
[1743215946161,1.20987286,617.11,616.85,2.095]
[1743215946360,1.89442723,617.1,616.85,2.095]
[1743215946564,1.89442723,617.09,616.85,2.095]
[1743215946766,1.89442723,617.08,616.85,2.095]
[1743215946968,1.89442723,617.07,616.85,2.095]
[1743215947162,1.89442723,617.06,616.85,2.095]
[1743215947364,2.83914067,617.05,616.85,2.095]
[1743215947564,1.89442723,617.04,616.85,2.095]
[1743215947765,2.83914067,617.03,616.85,2.095]
[1743215948063,1.20987286,617.02,616.85,2.095]
[1743215948268,1.20987286,617.01,616.85,2.095]
[1743215948460,1.20987286,617.0,616.85,2.095]
[1743215948663,1.20987286,616.99,616.85,1.064]
[1743215948866,1.20987286,616.98,616.85,1.064]
[1743215949167,1.20831961,616.97,616.85,1.064]
[1743215949360,1.20788963,616.96,616.85,1.064]
[1743215949559,0.94471344,616.98,616.85,1.064]
[1743215949767,0.94471344,616.96,616.85,1.064]
[1743215949970,1.20789704,616.95,616.85,1.064]
[1743215950162,2.15261048,616.94,616.85,1.064]
[1743215950369,0.94471344,616.94,616.85,1.064]
[1743215950669,0.94471344,616.94,616.8,1.266]
[1743215951066,0.94471344,616.93,616.8,1.266]
[1743215951462,0.94471344,616.92,616.8,1.266]
[1743215952063,0.94471344,616.91,616.8,1.266]
[1743215952768,1.20739082,616.97,616.8,1.266]
[1743215952968,0.68325491,617.06,616.8,1.266]
[1743215953265,2.82517218,617.05,616.8,1.266]
[1743215953469,1.89039855,617.04,616.8,1.266]
[1743215953769,2.14191727,617.03,616.8,1.266]
[1743215954069,1.20714364,617.02,616.8,1.266]
[1743215954271,1.20714364,617.01,616.8,1.266]
[1743215954569,1.20714364,617.0,616.8,1.266]
[1743215954869,2.14191727,616.99,616.8,1.266]
[1743215955069,1.20714364,616.98,616.8,1.266]
[1743215955369,1.20714364,616.97,616.8,1.266]
[1743215955563,0.93477363,616.98,616.8,1.266]
[1743215955768,1.20659577,616.97,616.8,1.266]
[1743215955966,0.93477363,616.97,616.8,1.266]
[1743215956771,0.93477363,616.96,616.8,1.266]
[1743215957370,0.93477363,616.95,616.8,1.266]
[1743215958177,1.88953463,617.18,616.8,1.266]
[1743215958379,1.88953463,617.17,616.8,1.266]
[1743215958580,2.82416783,617.16,616.8,1.266]
[1743215958774,1.88953463,617.15,616.8,1.266]
[1743215958979,2.82416783,617.14,616.8,1.266]
[1743215959180,1.88953463,617.13,616.8,1.266]
[1743215959480,1.20660371,617.12,616.8,1.266]
[1743215959674,0.68293092,617.13,616.8,1.266]
[1743215959675,1.20660371,617.11,616.8,1.266]
[1743215959876,1.20660371,617.1,616.8,1.266]
[1743215960074,1.20660371,617.09,616.8,1.266]
[1743215960280,1.20660371,617.08,616.8,1.266]
[1743215960581,2.14123691,617.07,616.8,1.266]
[1743215960780,1.20660371,617.06,616.8,1.266]
[1743215960980,0.9346332,617.07,616.8,1.266]
[1743215961178,0.9346332,617.05,616.8,1.266]
[1743215961781,0.9346332,617.04,616.8,1.266]
[1743215961980,0.9346332,617.03,616.8,1.266]
[1743215962377,0.9346332,617.02,616.8,1.266]
[1743215962975,0.9346332,617.01,616.8,1.266]
[1743215963375,0.9346332,617.0,616.8,1.266]
[1743215963980,1.20718471,617.07,616.8,1.266]
[1743215964175,1.20718471,617.06,616.8,1.266]
[1743215964374,1.20784146,617.05,616.8,1.266]
[1743215964575,0.68362559,617.14,616.8,1.266]
[1743215964779,1.89174518,617.13,616.8,1.266]
[1743215964979,0.93550787,617.04,616.8,1.266]
[1743215965482,0.93550787,617.03,616.8,1.266]
[1743215965982,0.93550787,617.02,616.8,1.266]
[1743215966782,0.93550787,617.01,616.8,1.266]
[1743215967479,0.93550787,617.0,616.8,1.266]
[1743215968583,1.20896435,617.05,616.8,1.266]
[1743215968784,0.68455242,617.13,616.8,1.266]
[1743215968983,1.89405356,617.12,616.8,1.266]
[1743215969184,1.89405356,617.11,616.8,1.266]
[1743215969383,1.89405356,617.1,616.8,1.266]
[1743215969684,1.89405356,617.09,616.8,1.266]
[1743215969883,1.89405356,617.08,616.8,1.266]
[1743215970084,1.20950114,617.07,616.8,1.266]
[1743215970278,1.20995439,617.06,616.8,1.266]
[1743215970477,0.28212061,617.19,616.8,1.266]
[1743215970478,2.14703885,617.05,616.8,1.266]
[1743215970680,1.20995439,617.04,616.8,1.266]
[1743215970878,0.93708446,617.05,616.8,1.266]
[1743215971078,1.21045286,617.04,616.8,1.266]
[1743215971383,0.93708446,617.04,616.8,1.266]
[1743215972083,0.93708446,617.03,616.8,1.266]
[1743215972682,0.93708446,617.02,616.8,1.266]
[1743215973081,0.93708446,617.01,616.8,1.266]
[1743215973786,0.93708446,617.0,616.8,1.266]
[1743215974581,0.93708446,616.99,616.8,1.266]
[1743215975087,0.93708446,616.98,616.8,1.266]
[1743215975686,0.68596076,617.13,616.8,1.266]
[1743215975687,0.93708446,616.97,616.8,1.266]
[1743215976284,0.93708446,616.96,616.8,1.266]
[1743215976684,0.93708446,616.95,616.8,1.266]
[1743215977382,0.68596076,617.04,616.8,1.266]
[1743215977587,1.21371302,617.03,616.8,1.266]
[1743215977786,1.21371302,617.02,616.8,1.266]
[1743215977983,1.21371302,617.01,616.8,1.266]
[1743215978182,0.94005375,617.03,616.8,1.266]
[1743215978183,1.21371302,617.0,616.8,1.266]
[1743215978390,1.21371302,616.99,616.8,1.266]
[1743215978590,0.94005375,617.0,616.8,1.266]
[1743215978790,0.94005375,616.98,616.8,1.266]
[1743215979182,0.94005375,616.97,616.8,1.266]
[1743215979787,0.94005375,616.96,616.8,1.266]
[1743215980589,0.94005375,616.95,616.8,1.266]
[1743215981091,0.94005375,616.94,616.8,1.266]
[1743215981491,0.94005375,616.93,616.8,1.266]
[1743215982186,0.68727881,617.1,616.8,1.266]
[1743215982391,1.90267441,617.09,616.8,1.266]
[1743215982692,0.28212747,617.2,616.8,1.266]
[1743215982693,2.84401851,617.08,616.8,1.266]
[1743215982893,1.90267441,617.07,616.8,1.266]
[1743215983095,1.90267441,617.06,616.8,1.266]
[1743215983288,1.90267441,617.05,616.8,1.266]
[1743215983490,2.84401851,617.04,616.8,1.266]
[1743215983689,1.90267441,617.03,616.8,1.266]
[1743215983888,1.90267441,617.02,616.8,1.266]
[1743215984088,1.90267441,617.01,616.8,1.266]
[1743215984288,1.90267441,617.0,616.8,1.266]
[1743215984491,1.90267441,616.99,616.8,1.266]
[1743215984688,1.90267441,616.98,616.8,1.266]
[1743215984893,1.2153956,616.97,616.8,1.266]
[1743215985091,1.2153956,616.96,616.8,1.266]
[1743215985289,1.2153956,616.95,616.8,1.266]
[1743215985494,1.2153956,616.94,616.8,1.266]
[1743215985796,1.2153956,616.93,616.8,1.266]
[1743215985995,0.9413441,616.97,616.8,1.266]
[1743215986295,0.9413441,616.94,616.8,1.266]
[1743215986497,1.21630213,616.93,616.8,1.266]
[1743215986690,1.21630213,616.92,616.8,1.266]
[1743215986893,0.9413441,616.91,616.8,1.266]
[1743215987296,0.9413441,616.9,616.8,1.266]
[1743215987997,0.9413441,616.89,616.8,1.266]
[1743215988593,0.9413441,616.88,616.8,1.266]
[1743215989000,0.9413441,616.87,616.8,1.266]
[1743215989900,0.9413441,616.86,616.8,1.266]
[1743215990602,0.28212747,617.2,616.8,1.266]
[1743215990802,1.90626562,617.19,616.8,1.266]
[1743215991001,1.90626562,617.18,616.8,1.266]
[1743215991201,1.90626562,617.17,616.8,1.266]
[1743215991397,1.90626562,617.16,616.8,1.266]
[1743215991602,1.90626562,617.15,616.8,1.266]
[1743215991903,1.90639853,617.14,616.8,1.266]
[1743215992101,1.90639853,617.13,616.8,1.266]
[1743215992401,2.84921917,617.12,616.8,1.266]
[1743215992602,1.90639853,617.11,616.8,1.266]
[1743215992806,1.90639853,617.1,616.8,1.266]
[1743215993004,1.90639853,617.09,616.8,1.266]
[1743215993203,1.90639853,617.08,616.8,1.266]
[1743215993397,1.90639853,617.07,616.8,1.266]
[1743215993601,1.90639853,617.06,616.8,1.266]
[1743215993805,1.90665136,617.05,616.8,1.266]
[1743215994004,1.90665136,617.04,616.8,1.266]
[1743215994206,1.90665136,617.03,616.8,1.266]
[1743215994404,1.90665136,617.02,616.8,1.266]
[1743215994604,1.90665136,617.01,616.8,1.266]
[1743215994806,1.90665136,617.0,616.8,1.266]
[1743215995006,1.90665136,616.99,616.8,1.266]
[1743215995206,2.84985316,616.98,616.8,1.266]
[1743215995407,1.21729076,616.97,616.8,1.266]
[1743215995603,1.21729076,616.96,616.8,1.266]
[1743215995807,1.21729076,616.95,616.8,1.266]
[1743215996003,0.28210688,617.25,616.8,1.266]
[1743215996004,1.21729076,616.94,616.8,1.266]
[1743215996203,1.21729076,616.93,616.8,1.266]
[1743215996404,0.94282064,616.92,616.8,1.266]
[1743215996808,0.94282064,616.91,616.8,1.266]
[1743215997008,0.94282064,616.9,616.8,1.266]
[1743215997409,2.43534484,618.26,616.8,1.266]
[1743215997608,2.20723704,618.25,616.8,1.266]
[1743215997810,2.530736,618.24,616.8,2.224]
[1743215998005,0.32350943,618.22,616.8,2.224]
[1743215998210,2.20723704,618.21,616.8,2.224]
[1743215998407,0.32352512,618.19,616.8,2.224]
[1743215998711,2.20723704,618.18,616.8,2.224]
[1743215999011,0.32354083,618.16,616.8,2.224]
[1743215999211,2.20723704,618.15,616.8,2.224]
[1743215999406,0.32355653,618.13,616.8,2.224]
[1743215999611,2.20723704,618.12,616.8,2.224]
[1743215999812,0.32357223,618.1,616.8,2.224]
[1743216000111,2.20723704,618.09,616.8,2.224]
[1743216000304,0.32358794,618.07,616.8,2.224]
[1743216000507,2.20723704,618.06,616.8,2.224]
[1743216000707,2.23298869,618.05,616.8,2.224]
[1743216001013,2.53084069,618.04,616.8,2.224]
[1743216001307,2.53084592,618.03,616.8,2.224]
[1743216001512,2.53085116,618.02,616.8,2.224]
[1743216001713,2.53085639,618.01,616.8,2.224]
[1743216001907,2.53086163,618.0,616.8,2.224]
[1743216002106,2.20723704,617.99,616.8,2.224]
[1743216002308,2.85375744,617.98,616.8,2.224]
[1743216002610,2.20723704,617.97,616.8,2.224]
[1743216002811,2.20723704,617.96,616.8,2.224]
[1743216003114,2.53088782,617.95,616.8,2.224]
[1743216003411,3.47526021,617.94,616.8,2.224]
[1743216003613,2.53089829,617.93,616.8,2.224]
[1743216003913,2.53090353,617.92,616.8,2.224]
[1743216004214,2.53090877,617.91,616.8,2.224]
[1743216004414,2.53091401,617.9,616.8,2.224]
[1743216004713,2.53091924,617.89,616.8,2.224]
[1743216004914,1.84083551,617.88,616.8,2.224]
[1743216005115,2.53138238,617.87,616.8,2.224]
[1743216005312,2.53138762,617.86,616.8,2.224]
[1743216005510,2.53139286,617.85,616.8,2.224]
[1743216005712,2.5313928,617.84,616.8,2.224]
[1743216005909,2.53207893,617.83,616.8,2.224]
[1743216006112,2.53208417,617.82,616.8,2.224]
[1743216006313,2.20836529,617.81,616.8,2.224]
[1743216006511,2.20836529,617.8,616.8,2.224]
[1743216006708,1.91052383,617.79,616.8,2.224]
[1743216006910,2.20836529,617.78,616.8,2.224]
[1743216007114,2.20836529,617.77,616.8,2.224]
[1743216007315,3.15273245,617.76,616.8,2.224]
[1743216007517,2.20836529,617.75,616.8,2.224]
[1743216007717,2.20836529,617.74,616.8,2.224]
[1743216008017,2.20836529,617.73,616.8,2.224]
[1743216008216,0.94436716,617.74,616.8,2.224]
[1743216008217,2.20836529,617.72,616.8,2.224]
[1743216008409,2.20836529,617.71,616.8,2.224]
[1743216008614,2.20836529,617.7,616.8,2.224]
[1743216008912,2.20839004,617.69,616.8,2.224]
[1743216009116,2.20839,617.68,616.8,2.224]
[1743216009316,1.91052383,617.67,616.8,2.224]
[1743216009512,1.91052383,617.66,616.8,2.224]
[1743216009716,2.85489099,617.65,616.8,2.224]
[1743216009911,1.91052383,617.64,616.8,2.224]
[1743216010119,1.91052383,617.63,616.8,2.224]
[1743216010314,1.91052383,617.62,616.8,2.224]
[1743216010518,2.85489099,617.61,616.8,2.224]
[1743216010720,1.91052383,617.6,616.8,2.224]
[1743216010918,1.91052383,617.59,616.8,2.224]
[1743216011121,2.85489099,617.58,616.8,2.224]
[1743216011313,1.91052383,617.57,616.8,2.224]
[1743216011515,1.91052383,617.56,616.8,2.224]
[1743216011713,1.91052383,617.55,616.8,2.224]
[1743216011916,1.91052383,617.54,616.8,2.224]
[1743216012114,1.91052383,617.53,616.8,2.224]
[1743216012318,1.91052383,617.52,616.8,2.224]
[1743216012519,1.91052383,617.51,616.8,2.224]
[1743216012821,1.91052383,617.5,616.8,2.224]
[1743216013021,1.91151133,617.49,616.8,2.224]
[1743216013215,1.91151133,617.48,616.8,2.224]
[1743216013419,1.91151133,617.47,616.8,2.224]
[1743216013618,2.85587849,617.46,616.8,2.224]
[1743216013819,1.91151133,617.45,616.8,2.224]
[1743216014121,2.85587849,617.44,616.8,2.224]
[1743216014317,1.91151133,617.43,616.8,2.224]
[1743216014518,1.91151133,617.42,616.8,2.224]
[1743216014718,2.85587849,617.41,616.8,2.224]
[1743216014921,1.91151133,617.4,616.8,2.224]
[1743216015120,2.85587849,617.39,616.8,2.224]
[1743216015419,2.85587849,617.38,616.8,2.224]
[1743216015618,1.91151133,617.37,616.8,2.224]
[1743216015816,1.91151133,617.36,616.8,2.224]
[1743216016116,1.91151133,617.35,616.8,3.545]
[1743216016318,2.85587849,617.34,616.8,3.545]
[1743216016521,2.85587849,617.33,616.8,3.545]
[1743216016715,1.91151133,617.32,616.8,3.545]
[1743216016915,1.91145709,617.31,616.8,3.545]
[1743216017116,1.91145709,617.3,616.8,3.545]
[1743216017316,1.91145709,617.29,616.8,3.545]
[1743216017521,1.91145709,617.28,616.8,5.103]
[1743216017719,1.91145709,617.27,616.8,5.103]
[1743216017916,1.91145709,617.26,616.8,6.226]
[1743216018122,1.91145709,617.25,616.8,6.226]
[1743216018317,2.85626902,617.24,616.8,6.226]
[1743216018518,1.91190186,617.23,616.8,6.226]
[1743216018717,1.91190186,617.22,616.8,6.226]
[1743216018919,1.91190186,617.21,616.8,6.226]
[1743216019224,1.91190186,617.2,616.8,4.002]
[1743216019422,1.91190186,617.19,616.8,4.002]
[1743216019722,0.28209316,617.23,616.8,4.002]
[1743216019723,2.85626902,617.18,616.8,4.002]
[1743216019923,1.91190186,617.17,616.8,4.002]
[1743216020223,2.85626902,617.16,616.8,4.002]
[1743216020425,1.91190186,617.15,616.8,4.002]
[1743216020723,1.91190186,617.14,616.8,4.002]
[1743216020921,1.91172266,617.13,616.8,4.002]
[1743216021124,1.91172266,617.12,616.8,4.002]
[1743216021329,1.91172266,617.11,616.8,4.002]
[1743216021524,1.91172266,617.1,616.8,4.002]
[1743216021730,1.91172266,617.09,616.8,4.002]
[1743216021931,1.91172266,617.08,616.8,4.002]
[1743216022130,1.91172266,617.07,616.8,4.002]
[1743216022332,1.91172266,617.06,616.8,4.002]
[1743216022534,1.91172266,617.05,616.8,4.002]
[1743216022733,1.91172266,617.04,616.8,4.002]
[1743216022934,2.85608982,617.03,616.8,4.002]
[1743216023131,1.91172266,617.02,616.8,4.002]
[1743216023328,2.85608982,617.01,616.8,4.002]
[1743216023529,1.91172266,617.0,616.8,4.002]
[1743216023734,1.91172266,616.99,616.8,4.002]
[1743216023931,1.91172266,616.98,616.8,4.002]
[1743216024134,1.91172266,616.97,616.8,4.002]
[1743216024435,1.91172266,616.96,616.8,4.002]
[1743216024635,1.91172266,616.95,616.8,4.002]
[1743216024829,0.94436716,616.98,616.8,4.002]
[1743216024830,1.91172266,616.94,616.8,4.002]
[1743216025036,1.91172266,616.93,616.8,4.002]
[1743216025332,1.91172266,616.92,616.8,4.002]
[1743216025634,1.91172266,616.91,616.8,4.002]
[1743216025831,1.91172266,616.9,616.8,4.002]
[1743216026034,1.91172266,616.89,616.8,4.002]
[1743216026336,1.91172266,616.88,616.8,4.002]
[1743216026535,1.91172266,616.87,616.8,4.002]
[1743216026736,1.91172266,616.86,616.8,4.002]